bitfinex/quotes_ETHUSD_20250114
["timestamp","ask_amount","ask_price","bid_price","bid_amount"]
[1736850502702,3.0,3234.0,3233.7,0.7737]
[1736850502929,3.0,3234.4,3233.5,0.3096]
[1736850502930,3.09224,3233.9,3233.5,0.3096]
[1736850503239,6.09234,3233.8,3233.5,0.3096]
[1736850503414,3.09244,3233.7,3233.5,0.3096]
[1736850504014,3.701684,3233.7,3233.5,0.3096]
[1736850504539,3.701684,3233.7,3233.4,0.7737]
[1736850505244,3.701684,3233.7,3233.1,0.7737]
[1736850505543,0.609244,3233.7,3233.1,0.7737]
[1736850505838,3.701764,3233.7,3233.1,0.7737]
[1736850506041,0.609244,3233.7,3233.1,0.7737]
[1736850506241,3.09265,3233.5,3233.1,0.7737]
[1736850507353,3.701734,3233.7,3233.1,0.7737]
[1736850507709,3.09254,3233.6,3233.1,0.7737]
[1736850507914,3.09254,3233.6,3233.2,0.28932521]
[1736850509365,3.09199,3234.2,3233.4,0.3096]
[1736850509527,3.0916,3234.6,3233.7,4.17564]
[1736850509727,3.0916,3234.6,3233.9,0.767]
[1736850510069,3.09168,3234.5,3233.9,0.767]
[1736850510724,3.09168,3234.5,3234.0,0.2893632]
[1736850512165,3.09168,3234.5,3233.9,0.767]
[1736850512729,0.30916,3234.6,3233.9,0.767]
[1736850513343,3.40075,3234.6,3233.9,0.767]
[1736850514271,3.40075,3234.6,3234.0,0.2893048]
[1736850515234,3.40075,3234.6,3233.9,0.767]
[1736850516471,0.640075,3234.5,3233.9,0.767]
[1736850518060,0.640075,3234.5,3234.0,0.28938998]
[1736850518264,0.8151,3234.4,3234.0,0.28938998]
[1736850518469,3.0918,3234.4,3234.0,0.28938998]
[1736850518638,3.0918,3234.4,3234.1,0.7559]
[1736850518836,3.4959035,3234.4,3234.1,0.7559]
[1736850519279,3.4959035,3234.4,3233.7,0.77264073]
[1736850519280,0.53972166,3235.2,3234.8,0.7559]
[1736850519439,0.53972166,3235.2,3234.7,3.98147]
[1736850519440,4.16741327,3236.7,3235.3,0.3096]
[1736850519644,0.8151,3236.7,3235.5,0.3096]
[1736850519839,0.8151,3236.7,3235.8,0.3096]
[1736850520040,0.8151,3236.7,3235.6,3.12149083]
[1736850520041,0.390458,3236.6,3236.0,0.3096]
[1736850521154,3.390458,3236.6,3236.0,0.3096]
[1736850521349,0.390458,3236.6,3236.0,0.3096]
[1736850521669,3.390458,3236.6,3236.0,0.3096]
[1736850521867,0.390458,3236.6,3236.0,0.3096]
[1736850522066,0.41275727,3236.5,3236.0,0.3096]
[1736850524175,0.41275727,3236.5,3235.9,0.7559]
[1736850524377,3.390458,3236.6,3235.9,0.7559]
[1736850524802,3.390458,3236.6,3235.9,0.9139]
[1736850527243,0.390458,3236.6,3235.9,0.9139]
[1736850527495,3.08995,3236.3,3235.4,0.7559]
[1736850527702,3.0,3236.2,3235.7,0.158]
[1736850527851,3.308995,3236.2,3235.7,0.158]
[1736850528338,0.308995,3236.2,3235.7,0.158]
[1736850528535,3.399055,3236.2,3235.5,0.61800534]
[1736850528691,3.399055,3236.2,3235.5,0.77600534]
[1736850529023,0.3399055,3236.1,3235.5,0.77600534]
[1736850529220,0.3399055,3236.1,3235.4,0.7559]
[1736850529395,3.4300555,3236.1,3235.4,0.9139]
[1736850530338,3.0,3236.3,3235.5,0.03090626]
[1736850530936,3.0,3236.3,3235.6,0.158]
[1736850531830,3.08995,3236.3,3235.6,0.158]
[1736850532124,3.08995,3236.3,3235.4,3.84661]
[1736850532330,3.08995,3236.3,3235.6,0.158]
[1736850532492,0.308995,3236.2,3235.6,0.158]
[1736850534194,0.308995,3236.2,3235.4,3.87751375]
[1736850534528,0.308995,3236.2,3235.5,0.18890375]
[1736850535330,0.308995,3236.2,3235.5,0.158]
[1736850535895,0.308995,3236.2,3235.5,0.18890374]
[1736850537335,0.308995,3236.2,3235.6,0.158]
[1736850537506,3.6398,3236.5,3235.7,0.7559]
[1736850538200,3.390458,3236.6,3235.7,3.87723373]
[1736850538520,3.390458,3236.6,3235.8,0.8049]
[1736850539331,3.480118,3236.6,3235.8,0.8049]
[1736850540338,3.0895,3236.8,3235.9,0.03090067]
[1736850540515,3.0895,3236.8,3236.0,0.8049]
[1736850541641,3.0,3236.6,3236.0,0.8049]
[1736850542247,3.0,3236.6,3236.0,1.41108064]
[1736850542546,3.0,3236.4,3236.0,0.8049]
[1736850543215,3.698863,3236.4,3236.0,0.8049]
[1736850543416,0.608983,3236.4,3236.0,0.8049]
[1736850543622,3.09024,3236.0,3235.6,0.9619]
[1736850544613,3.115373,3236.0,3235.6,0.9619]
[1736850545116,0.025133,3236.0,3235.6,0.8049]
[1736850545667,3.115413,3236.0,3235.6,0.8049]
[1736850546646,3.09037,3235.9,3235.6,0.8049]
[1736850548285,0.3366743,3236.0,3235.3,1.59612106]
[1736850548485,3.09043,3235.8,3235.3,1.59612106]
[1736850548787,3.09043,3235.8,3235.3,0.9619]
[1736850548962,3.09043,3235.8,3235.3,0.8049]
[1736850549362,3.0,3235.9,3235.3,0.8049]
[1736850549583,0.025133,3236.0,3235.4,0.32005401]
[1736850549890,0.025133,3236.0,3235.5,0.8049]
[1736850551000,0.025133,3236.0,3235.6,0.75258211]
[1736850551381,0.025133,3236.0,3235.7,3.12138404]
[1736850551688,0.025133,3236.0,3235.8,0.8049]
[1736850552177,0.025133,3236.0,3235.9,0.75258211]
[1736850552375,0.025133,3236.0,3235.9,1.55748211]
[1736850552563,0.025133,3236.0,3235.9,4.6787112]
[1736850553190,0.025133,3236.0,3235.9,2.2137719]
[1736850553397,0.025133,3236.0,3235.9,2.18287281]
[1736850553593,3.0,3236.4,3235.9,2.18287281]
[1736850554593,3.0,3236.4,3236.0,0.3096]
[1736850554796,3.0,3236.4,3236.0,1.06218211]
[1736850555095,3.08985,3236.4,3236.0,1.06218211]
[1736850555297,3.398835,3236.4,3236.0,1.06218211]
[1736850555592,3.08997,3236.3,3236.0,1.06218211]
[1736850556087,3.308985,3236.4,3236.1,0.28914777]
[1736850556293,3.55,3236.8,3236.1,0.28914777]
[1736850556458,3.0,3236.5,3236.1,0.28914777]
[1736850556659,3.08977,3236.5,3236.1,0.28914777]
[1736850557164,0.55,3236.4,3236.2,0.28914777]
[1736850558821,0.55,3236.4,3236.0,0.3096]
[1736850559138,3.63963,3236.7,3236.0,0.3096]
[1736850559428,3.55,3236.5,3236.0,0.3096]
[1736850559581,3.55,3236.5,3236.1,0.28958742]
[1736850559783,3.55,3236.6,3236.2,0.8017]
[1736850560689,3.55,3236.6,3236.3,0.28958742]
[1736850561994,3.08967,3236.6,3236.3,0.28958742]
[1736850562200,0.55,3236.5,3236.2,0.8017]
[1736850563100,3.55,3236.5,3236.2,0.8017]
[1736850563304,0.55,3236.4,3236.2,0.8017]
[1736850564300,0.55,3236.8,3236.2,0.8017]
[1736850564628,0.55,3236.3,3236.0,0.4666]
[1736850566755,0.025133,3236.2,3236.0,0.4666]
[1736850574927,0.575133,3236.2,3236.0,0.4666]
[1736850576979,0.575133,3236.2,3236.0,0.3096]
[1736850577128,0.575133,3236.2,3235.3,0.7738]
[1736850577129,0.55,3235.7,3235.3,0.7738]
[1736850577334,0.55,3235.7,3235.3,0.9308]
[1736850577571,3.64052,3235.7,3235.3,0.9308]
[1736850577753,3.64052,3235.7,3235.3,1.56291061]
[1736850578130,3.64052,3235.7,3235.4,0.59929099]
[1736850579371,3.64052,3235.7,3235.4,0.3096]
[1736850584177,3.0,3235.8,3235.4,0.3096]
[1736850584398,3.09045,3235.8,3235.4,0.3096]
[1736850585096,0.55,3235.7,3235.4,0.3096]
[1736850585395,6.64052,3235.7,3235.6,0.63320094]
[1736850585586,7.304572,3235.7,3235.6,0.63320094]
[1736850586897,6.64052,3235.7,3235.6,0.63320094]
[1736850590102,0.55,3235.6,3235.3,0.9308]
[1736850590900,3.0908,3235.4,3235.3,0.7738]
[1736850591212,3.0908,3235.4,3234.8,0.28927467]
[1736850591213,0.55,3235.3,3235.2,0.157]
[1736850592892,0.55,3235.5,3235.2,0.157]
[1736850593210,3.64071,3235.5,3235.2,0.157]
[1736850593806,3.64071,3235.5,3235.0,0.7738]
[1736850593807,0.664071,3235.5,3235.0,0.7738]
[1736850594103,0.55,3235.0,3234.8,1.25195401]
[1736850595004,3.64096,3235.3,3234.8,1.25195401]
[1736850595229,3.08988,3236.4,3235.1,2.92201471]
[1736850595367,3.09018,3236.1,3235.2,0.80470341]
[1736850595570,3.09018,3236.1,3235.3,0.7738]
[1736850595809,3.0,3236.0,3235.4,0.03090289]
[1736850595976,3.84096,3236.3,3235.5,0.7738]
[1736850596304,0.751,3236.3,3235.5,0.7738]
[1736850596508,0.55,3236.2,3235.7,0.61246157]
[1736850596693,0.55,3236.2,3235.5,0.7738]
[1736850597205,3.09043,3235.8,3235.5,0.7738]
[1736850597411,0.55,3235.7,3235.5,0.7738]
[1736850597709,0.55,3236.2,3235.4,0.157]
[1736850597890,0.55,3235.5,3235.4,0.157]
[1736850598605,0.55,3235.5,3235.1,0.7738]
[1736850598784,0.55,3235.5,3235.3,0.157]
[1736850599914,0.55,3235.5,3235.3,0.131867]
[1736850600698,3.64048,3235.8,3235.3,0.131867]
[1736850600911,0.55,3235.6,3235.3,0.131867]
[1736850602879,0.55,3235.8,3235.3,0.131867]
[1736850603217,0.55,3235.5,3235.3,0.131867]
[1736850603715,0.55,3235.5,3235.4,0.157]
[1736850604528,3.64071,3235.5,3235.4,0.157]
[1736850605117,0.55,3235.5,3235.4,0.157]
[1736850606219,0.55,3235.5,3235.4,0.9619]
[1736850606378,0.8332,3236.4,3235.4,0.9928026]
[1736850606708,1.225498,3236.4,3235.4,1.28248949]
[1736850607116,0.55,3236.1,3235.4,1.28248949]
[1736850607311,3.6402,3236.1,3235.4,1.28248837]
[1736850607924,3.6402,3236.1,3235.5,0.28968689]
[1736850608130,3.0903,3236.0,3235.5,0.28968689]
[1736850608322,0.55,3235.9,3235.5,0.28968689]
[1736850608522,1.3832,3235.9,3235.5,0.28968689]
[1736850608936,1.3832,3235.9,3235.4,0.9619]
[1736850609092,0.55,3235.6,3235.5,0.157]
[1736850609496,0.55,3235.5,3235.4,0.157]
[1736850609693,0.55,3235.3,3234.9,0.8049]
[1736850609929,1.3832,3235.3,3234.9,0.157]
[1736850610150,3.64119,3235.0,3234.9,0.157]
[1736850610680,0.55,3235.0,3234.9,0.157]
[1736850611743,0.55,3234.9,3234.7,0.157]
[1736850612151,0.55,3234.8,3234.6,0.4666]
[1736850612314,0.55,3234.8,3234.5,0.3096]
[1736850612629,0.55,3234.8,3234.6,0.157]
[1736850613707,3.55,3235.2,3234.4,0.76930678]
[1736850613896,0.55,3234.5,3234.4,0.157]
[1736850615453,0.55,3234.7,3234.4,0.157]
[1736850615751,3.64148,3234.7,3234.4,0.157]
[1736850616919,0.55,3234.7,3234.4,0.157]
[1736850617136,0.55,3234.5,3234.4,0.157]
[1736850617911,0.55,3234.5,3234.2,0.8049]
[1736850618096,0.55,3234.5,3234.3,0.157]
[1736850619222,0.55,3234.4,3234.2,0.8049]
[1736850619550,0.55,3234.5,3234.1,0.44618561]
[1736850619748,0.55,3234.5,3234.1,0.157]
[1736850620918,0.55,3234.4,3234.1,0.157]
[1736850621127,0.914166,3234.4,3233.7,1.23459178]
[1736850621318,3.64195,3234.2,3233.8,0.157]
[1736850621565,0.55,3234.2,3233.8,0.157]
[1736850621884,0.55,3234.3,3233.8,0.18791955]
[1736850622218,0.55,3234.3,3233.8,0.157]
[1736850623449,3.0918,3234.4,3233.8,0.157]
[1736850623450,0.55,3234.1,3233.8,0.157]
[1736850624116,0.55,3234.1,3233.9,0.3096]
[1736850624322,0.55,3234.0,3233.9,0.3096]
[1736850624718,0.8324,3234.3,3233.7,0.61015332]
[1736850624914,3.09206,3234.1,3233.7,0.61015332]
[1736850625226,0.55,3233.9,3233.7,0.61015332]
[1736850625555,0.55,3233.9,3233.7,0.76715332]
[1736850625718,0.55,3233.9,3233.7,0.157]
[1736850626573,4.006545,3233.8,3233.7,0.157]
[1736850627183,3.09253,3233.6,3233.4,0.3096]
[1736850627473,0.55,3233.4,3233.3,0.32093494]
[1736850627837,3.64271,3233.4,3233.3,0.32093494]
[1736850630149,0.55,3233.3,3233.2,0.157]
[1736850630486,0.55,3233.3,3232.9,0.7716]
[1736850630487,0.55,3233.1,3232.9,0.157]
[1736850630780,0.55,3233.1,3232.8,0.157]
[1736850631687,3.09292,3233.2,3232.7,0.8049]
[1736850631688,0.55,3233.2,3232.7,0.8049]
[1736850631993,3.64313,3233.0,3232.7,0.157]
[1736850632150,3.64298,3233.2,3232.7,0.157]
[1736850632349,3.0,3233.1,3232.7,0.157]
[1736850632671,0.55,3233.0,3232.7,0.157]
[1736850633086,0.55,3233.0,3232.4,2.04778508]
[1736850633280,1.243971,3233.3,3232.5,0.4666]
[1736850633281,0.55,3233.2,3232.5,0.4666]
[1736850633481,3.64299,3233.2,3232.5,0.4666]
[1736850633707,0.55,3233.0,3232.5,0.4666]
[1736850634671,0.55,3233.1,3232.5,0.4666]
[1736850634874,0.55,3232.8,3232.6,0.157]
[1736850635075,7.16598571,3233.3,3232.4,0.61404187]
[1736850635076,0.55,3233.0,3232.4,0.61404187]
[1736850635259,7.16598571,3233.3,3232.4,0.61404187]
[1736850635260,0.55,3232.8,3232.4,0.61404187]
[1736850635587,3.64331,3232.8,3232.4,0.61404187]
[1736850635802,3.64331,3232.8,3232.3,0.157]
[1736850635949,0.55,3232.5,3232.2,0.8049]
[1736850636289,3.64358,3232.5,3232.2,0.157]
[1736850636488,3.64358,3232.5,3232.1,0.157]
[1736850636806,0.55,3232.2,3232.0,57.3753]
[1736850637157,3.0,3232.4,3232.0,57.3753]
[1736850637381,0.8247,3232.7,3232.0,57.3753]
[1736850637661,3.09321,3232.9,3232.2,0.8049]
[1736850638572,0.55,3232.8,3232.2,0.8049]
[1736850639124,0.55,3232.6,3232.2,0.8049]
[1736850639420,0.55,3232.6,3232.3,0.3096]
[1736850640504,3.09308,3233.1,3232.3,0.3096]
[1736850640505,0.55,3232.9,3232.3,0.3096]
[1736850640803,3.64323,3232.9,3232.3,0.3096]
[1736850642037,0.55,3232.6,3232.3,0.3096]
[1736850642215,6.09306,3233.1,3232.3,0.3096]
[1736850642216,0.55,3232.8,3232.3,0.3096]
[1736850642391,0.8008,3232.9,3232.2,0.157]
[1736850642589,0.55,3232.7,3232.2,0.157]
[1736850645292,0.55,3232.5,3232.1,0.3096]
[1736850645497,3.64364,3232.5,3232.3,0.157]
[1736850646034,3.64364,3232.5,3232.1,0.3096]
[1736850646235,0.55,3232.3,3232.1,0.4666]
[1736850646620,0.55,3232.1,3232.0,57.2183]
[1736850646811,3.64396,3232.1,3232.0,57.2183]
[1736850648038,0.55,3232.3,3232.0,57.2183]
[1736850648449,3.64396,3232.1,3232.0,57.2183]
[1736850649219,7.008356,3232.1,3232.0,57.2183]
[1736850649550,7.809156,3232.1,3232.0,57.2183]
[1736850653578,7.44476,3232.1,3232.0,57.2183]
[1736850658530,6.09396,3232.1,3232.0,57.2183]
[1736850658758,3.0,3232.1,3232.0,57.2183]
[1736850658964,0.8008,3232.9,3232.2,0.8049]
[1736850659170,3.09271,3233.4,3232.4,0.3096]
[1736850659372,3.89324,3233.7,3232.5,1.14543235]
[1736850659560,3.81046697,3233.6,3232.5,1.1145]
[1736850659759,3.0,3233.4,3232.5,1.1145]
[1736850659955,3.09295,3233.2,3232.5,1.1145]
[1736850660468,3.09295,3233.2,3232.6,0.03093207]
[1736850661168,3.09276,3233.4,3232.6,0.03093207]
[1736850661369,3.09257,3233.6,3232.8,0.8049]
[1736850661569,3.09257,3233.6,3232.9,0.03092762]
[1736850662072,3.09262,3233.5,3232.9,0.03092762]
[1736850662243,0.55,3233.4,3232.9,0.03092762]
[1736850662441,0.55,3233.3,3232.8,1.1145]
[1736850662850,0.55,3232.9,3232.8,0.8049]
[1736850663067,0.55,3232.9,3232.5,1.41111276]
[1736850663538,0.55,3232.8,3232.5,0.8049]
[1736850663712,0.364322,3232.8,3232.4,0.4671]
[1736850664012,0.55,3232.7,3232.4,0.4671]
[1736850664313,0.55,3232.6,3232.4,0.157]
[1736850664819,6.09321,3232.9,3232.4,0.157]
[1736850665112,0.8008,3233.8,3232.6,0.8049]
[1736850665312,3.0926,3233.6,3232.7,0.03092971]
[1736850665482,0.55,3233.4,3232.7,0.03092971]
[1736850665677,3.09195,3234.2,3233.1,0.8049]
[1736850665905,3.09235,3233.8,3233.1,0.8049]
[1736850666082,0.55,3233.7,3233.2,0.03092588]
[1736850666276,0.8008,3234.3,3233.2,0.03092588]
[1736850666277,0.55,3233.9,3233.2,0.03092588]
[1736850666514,0.55,3234.2,3233.1,0.8049]
[1736850666718,3.55,3233.7,3233.1,0.8049]
[1736850666919,3.55,3233.7,3233.2,0.03092588]
[1736850668011,3.55,3233.7,3233.1,0.8049]
[1736850668207,0.55,3233.7,3233.1,0.8049]
[1736850668418,0.55,3233.6,3233.1,0.8049]
[1736850668688,0.55,3233.3,3232.9,0.2888819]
[1736850668994,3.64288,3233.3,3233.0,0.156]
[1736850669408,0.55,3233.3,3232.8,0.7922]
[1736850669731,0.55,3233.3,3232.5,0.9482]
[1736850670084,3.55,3232.9,3232.5,0.9482]
[1736850670395,3.55,3232.9,3232.5,0.7922]
[1736850670591,3.09295,3233.2,3232.5,0.7922]
[1736850670796,3.0,3233.1,3232.5,0.7922]
[1736850671093,0.55,3233.0,3232.5,0.82313193]
[1736850671295,3.09275,3233.4,3232.5,0.82313193]
[1736850671496,0.55,3233.5,3232.5,0.82313193]
[1736850671694,0.55,3233.5,3232.7,0.7922]
[1736850671893,3.55,3233.5,3232.7,0.7922]
[1736850672216,0.55,3233.4,3232.7,0.7922]
[1736850672422,0.55,3233.4,3232.8,0.03092939]
[1736850672787,0.914264,3233.4,3232.7,0.7922]
[1736850673722,0.914264,3233.4,3232.8,0.03092936]
[1736850674018,3.0,3233.7,3232.8,0.03092936]
[1736850674222,6.01409471,3234.1,3233.0,0.3101]
[1736850674223,6.09237,3233.8,3233.0,0.3101]
[1736850674420,0.55,3233.7,3233.1,0.03092649]
[1736850674589,0.55,3233.7,3233.0,0.3101]
[1736850674590,3.64245,3233.7,3233.0,0.3101]
[1736850675222,3.64245,3233.7,3233.1,0.03092649]
[1736850675427,0.55,3233.7,3233.1,0.03092649]
[1736850677424,3.88608,3234.5,3233.5,3.40271]
[1736850677624,3.09149,3234.7,3233.7,3.09234]
[1736850677939,3.09149,3234.7,3233.8,0.34101901]
[1736850678086,0.7944,3234.8,3233.8,0.34101901]
[1736850678288,3.09159,3234.6,3233.9,0.7989]
[1736850678526,3.09134,3234.9,3234.1,0.3101]
[1736850678727,3.09126,3235.0,3234.2,1.13991515]
[1736850679030,6.79136471,3235.4,3234.2,1.13991515]
[1736850679228,3.09116,3235.1,3234.2,0.82981515]
[1736850679395,3.55,3235.1,3234.2,0.82981515]
[1736850679724,3.09117,3235.1,3234.2,3.92174515]
[1736850680396,6.77006647,3235.3,3234.3,3.89073]
[1736850680689,3.09101,3235.2,3234.4,0.03091239]
[1736850680896,3.0,3235.1,3234.4,0.03091239]
[1736850681115,0.55,3235.0,3234.4,0.03091239]
[1736850681423,0.55,3235.0,3234.4,0.66277226]
[1736850681629,3.55,3235.1,3234.4,0.66277226]
[1736850681828,0.55,3235.0,3234.4,0.63185987]
[1736850683125,0.55,3235.0,3234.3,0.7989]
[1736850684532,0.55,3235.0,3234.3,0.8298124]
[1736850684739,0.55,3235.0,3234.3,0.7989]
[1736850685229,0.55,3234.9,3234.3,0.7989]
[1736850685437,0.55,3234.8,3234.3,0.7989]
[1736850685596,0.55,3234.7,3234.3,0.7989]
[1736850689428,6.64124,3235.0,3234.3,0.7989]
[1736850690654,0.55,3234.8,3234.3,0.7989]
[1736850691840,0.55,3234.7,3234.3,0.7989]
[1736850692341,0.55,3234.7,3234.4,0.156]
[1736850692718,0.55,3234.7,3234.2,0.62247677]
[1736850692719,3.64176,3234.5,3234.0,0.8049]
[1736850692920,3.64176,3234.5,3234.0,0.9609]
[1736850692921,0.55,3234.2,3234.0,0.9609]
[1736850693804,0.55,3234.4,3234.0,0.9609]
[1736850694332,0.55,3234.3,3234.0,0.9609]
[1736850696501,0.55,3234.3,3234.0,0.8049]
[1736850697022,0.55,3234.3,3234.0,0.9609]
[1736850699464,3.09186,3234.3,3234.0,0.9609]
[1736850699618,3.64198,3234.2,3234.0,0.9609]
[1736850700653,3.64198,3234.2,3234.0,0.156]
[1736850701017,0.309186,3234.3,3233.8,0.8049]
[1736850701217,0.55,3234.0,3233.7,0.156]
[1736850701417,0.55,3233.8,3233.7,0.156]
[1736850701735,0.55,3234.0,3233.7,0.156]
[1736850702522,3.09215,3234.0,3233.7,0.156]
[1736850702725,0.55,3233.9,3233.7,0.156]
[1736850703482,6.47201471,3234.2,3233.7,0.156]
[1736850703759,6.47201471,3234.2,3233.3,0.92934566]
[1736850703760,0.55,3233.5,3233.3,0.3101]
[1736850703977,3.64269,3233.5,3233.2,0.156]
[1736850704278,3.64281,3233.3,3233.2,0.156]
[1736850705574,2.92201471,3233.6,3232.9,0.754]
[1736850705575,0.55,3233.2,3232.9,0.754]
[1736850705773,0.55,3233.4,3232.9,0.754]
[1736850705972,0.55,3233.0,3232.7,0.754]
[1736850706174,0.55,3233.1,3232.7,0.754]
[1736850706668,3.55,3233.2,3232.4,0.60611503]
[1736850706868,0.55,3232.8,3232.4,0.156]
[1736850707476,3.55,3233.2,3232.4,0.156]
[1736850707636,4.65021397,3233.2,3232.4,0.156]
[1736850708152,0.55,3232.9,3232.4,0.156]
[1736850709074,0.55,3233.1,3232.3,0.754]
[1736850709251,0.55,3232.6,3232.4,0.156]
[1736850710186,0.55,3232.9,3232.4,0.156]
[1736850710840,3.6432,3232.9,3232.4,0.156]
[1736850711045,0.66432,3232.9,3232.4,0.156]
[1736850711258,3.09334,3232.8,3232.4,0.156]
[1736850711576,0.55,3232.7,3232.3,0.754]
[1736850711744,0.55,3232.6,3232.3,0.754]
[1736850711945,0.55,3232.9,3232.3,0.754]
[1736850712170,0.55,3232.7,3232.3,0.754]
[1736850712574,0.55,3233.0,3232.3,0.754]
[1736850712766,0.55,3232.7,3232.3,0.754]
[1736850713161,3.55,3232.9,3232.4,0.03093475]
[1736850713363,0.1,3233.2,3232.7,3.09337]
[1736850713659,0.1,3233.2,3233.0,1.0641]
[1736850714694,0.1,3233.2,3233.1,0.156]
[1736850715001,0.65,3233.2,3233.1,0.156]
[1736850715658,0.55,3233.1,3232.8,0.7951]
[1736850716084,0.1,3233.2,3232.8,0.9511]
[1736850716300,0.55,3233.1,3232.8,0.9511]
[1736850719095,3.19291,3233.2,3232.9,0.03093081]
[1736850719096,0.1,3233.2,3232.9,0.03093081]
[1736850719457,0.1,3233.2,3232.9,0.18693081]
[1736850719661,0.1,3233.2,3233.0,0.7844]
[1736850719958,0.1,3233.2,3233.1,3.12392565]
[1736850720163,0.1,3233.2,3233.1,3.90832565]
[1736850720959,0.1,3233.2,3233.1,4.21842565]
[1736850721388,0.1,3233.2,3233.1,7.14044036]
[1736850721559,0.1,3233.2,3233.1,7.10951471]
[1736850721996,0.1,3233.2,3233.1,7.39813284]
[1736850722770,0.1,3233.2,3233.1,8.02615694]
[1736850723905,0.1,3233.2,3233.1,2.16714223]
[1736850724061,0.1,3233.2,3233.1,5.26014223]
[1736850725200,0.1,3233.2,3233.1,8.18215694]
[1736850726098,0.09627979,3233.2,3233.1,8.18215694]
[1736850726401,0.09627979,3233.2,3233.1,2.16714223]
[1736850726598,0.64627979,3233.2,3233.1,2.16714223]
[1736850727168,0.64627979,3233.2,3233.1,2.01114223]
[1736850727470,0.64627979,3233.2,3233.1,2.16714223]
[1736850727803,0.64627979,3233.2,3233.1,1.8785241]
[1736850728007,0.64627979,3233.2,3233.1,1.0941241]
[1736850728166,0.55,3233.1,3232.6,0.3101]
[1736850728367,0.55,3233.1,3232.7,0.156]
[1736850728563,0.55,3233.1,3232.7,0.44494847]
[1736850729103,3.64301,3233.1,3232.7,0.44494847]
[1736850729881,3.64301,3233.1,3232.7,0.28894847]
[1736850730084,3.64301,3233.1,3232.6,0.60736142]
[1736850730085,0.55,3232.9,3232.6,0.28894847]
[1736850730268,0.55,3232.9,3232.7,0.156]
[1736850730468,0.09627979,3233.2,3232.7,0.156]
[1736850730881,0.55,3233.1,3232.7,0.156]
[1736850731078,0.64627979,3233.2,3232.8,0.7844]
[1736850731079,0.09627979,3233.2,3232.8,0.7844]
[1736850731508,0.09627979,3233.2,3232.9,0.03092898]
[1736850731876,0.09627979,3233.2,3232.9,3.12409898]
[1736850732611,0.09627979,3233.2,3233.0,0.28894847]
[1736850733171,0.09627979,3233.2,3233.1,0.03092607]
[1736850734016,0.09627979,3233.2,3233.0,0.31987456]
[1736850734333,0.09627979,3233.2,3233.1,0.28894847]
[1736850734476,0.64627979,3233.2,3233.1,0.28894847]
[1736850735297,0.55,3233.1,3232.9,0.44494847]
[1736850735498,0.09627979,3233.2,3232.9,0.28894847]
[1736850735713,4.4455,3233.0,3232.9,0.28894847]
[1736850735913,1.3524,3233.0,3232.9,0.28894847]
[1736850736114,0.09627979,3233.2,3232.9,0.28894847]
[1736850736343,3.09319,3233.0,3232.6,0.156]
[1736850736831,0.41518477,3233.2,3232.4,0.62141659]
[1736850736832,0.55,3232.7,3232.5,0.156]
[1736850737182,3.64341,3232.7,3232.5,0.156]
[1736850737783,3.64341,3232.7,3232.1,0.61900056]
[1736850737784,3.64341,3232.7,3232.1,0.156]
[1736850738128,0.55,3232.5,3232.1,0.156]
[1736850738499,3.6435,3232.6,3232.1,0.156]
[1736850738700,3.6435,3232.6,3232.1,0.28921569]
[1736850739184,3.6435,3232.6,3232.2,0.3101]
[1736850739617,0.55,3232.4,3232.2,0.3101]
[1736850740316,0.55,3232.4,3232.1,0.3101]
[1736850743133,0.8024,3232.3,3232.1,0.3101]
[1736850743289,0.55,3232.2,3232.1,0.3101]
[1736850745819,0.55,3232.2,3232.0,57.2183]
[1736850747041,3.64396,3232.1,3232.0,57.2183]
[1736850747397,6.64396,3232.1,3232.0,57.2183]
[1736850747720,10.81301071,3232.1,3232.0,57.2183]
[1736850751624,7.44636,3232.1,3232.0,57.2183]
[1736850752343,10.36837471,3232.1,3232.0,57.2183]
[1736850757869,7.44636,3232.1,3232.0,57.2183]
[1736850758457,10.36837471,3232.1,3232.0,57.2183]
[1736850759475,10.11837471,3232.1,3232.0,57.2183]
[1736850759773,7.19636,3232.1,3232.0,57.2183]
[1736850761776,3.0,3232.1,3232.0,57.2183]
[1736850762081,6.64396,3232.1,3232.0,57.2183]
[1736850762745,9.56597471,3232.1,3232.0,57.2183]
[1736850763077,10.98316477,3232.1,3232.0,57.2183]
[1736850763575,10.35887471,3232.1,3232.0,57.2183]
[1736850764897,7.43686,3232.1,3232.0,57.2183]
[1736850765189,6.64396,3232.1,3232.0,57.2183]
[1736850768473,9.56597471,3232.1,3232.0,57.2183]
[1736850772887,10.34937471,3232.1,3232.0,57.2183]
[1736850773068,11.38431218,3232.1,3232.0,57.2183]
[1736850775374,11.39181218,3232.1,3232.0,57.2183]
[1736850775713,11.39181218,3232.1,3232.0,56.35717373]
[1736850777277,7.42736,3232.1,3232.0,56.35717373]
[1736850777495,6.87736,3232.1,3232.0,56.35717373]
[1736850777802,3.09396,3232.1,3232.0,56.35717373]
[1736850778827,6.64396,3232.1,3232.0,56.35717373]
[1736850779101,6.09396,3232.1,3232.0,56.35717373]
[1736850779628,6.64396,3232.1,3232.0,56.35717373]